Workbook

Sheet VZ
F1: Strassenlärmsanierung | J1: Grobabschätzung der
F2: Gemeindestrassen | J2: Verkehrsbelastung
B3: Tiefbauamt / Fachstelle Lärmschutz
B5: Gemeinde: | H5: Abschnitt:
B7: Strasse: | H7: von Koordinaten X/Y:
B9: Verkehrsart: | H9: bis Koordinaten X/Y:
H11: Abschnittslänge:
B14: Angaben zu Standort und Art der Verkehrszählung
B16: Koordinaten X/Y:
B18: Beschreibung in Worten:
B20: Art der Verkehrszählung: | I20: Gerät:
B22: Verantwortlicher:
F24: Tel.: | I24: E-Mail:
B26: Situation
B34: Zähl- querschnitt
B36: Abschnitts- grenzen
B40: Zähldaten (manuell eingeben)
B42: Datum der Zählung (Tag.Monat.Jahr)
B44: Monat | L44: =update_month(L42) -> 
B46: Wochentag | L46: =update_weekday(L42) -> 
B48: Messzeit (vorgegeben zwischen 10:00-16:00, jeweils 1h):
B51: Zählquerschnitt | E51: Richtung | I51: PW | J51: Roller Mofa | K51: Motor- rad | L51: Liefer- wagen | M51: LW Traktor | N51: Total
N52: =IF(SUM(I52:M52)>0,SUM(I52:M52),"") -> 
N53: =IF(SUM(I53:M53)>0,SUM(I53:M53),"") -> 
N54: =IF(SUM(I54:M54)>0,SUM(I54:M54),"") -> 
N55: =IF(SUM(I55:M55)>0,SUM(I55:M55),"") -> 
B58: Anzahl Fahrzeuge pro Stunde (für die Kategorien nach Anhang 3 §32 LSV): | L58: PW* : | M58: 0 | N58: [Fz/h]
B59: * inkl. Lieferwagenanteil von 80% | L59: LW**: | M59: 0 | N59: [Fz/h]
B60: ** inkl. Lieferwagenanteil von 20% | I60: Schwerverkehrsanteil: | M60: 0 | N60: [%]
B63: Massgebende Verkehrszahlen (automatisch ermittelt)
B65: Durchschnittlicher 24h-Verkehr: | L65: DTV: | M65: 0 | N65: [Fz/24h]
B66: Genauigkeit (Standardabweichung): | L66: σ: | M66: 0 | N66: [%]
J68: tags (06-22 Uhr) | M68: nachts (22-06 Uhr)
B69: Verkehr im Jahresdurchschnitt: | I69: Nt | J69: Nt1 | K69: Nt2 | L69: Nn | M69: Nn1 | N69: Nn2
B70: (aus Zähldaten hochgerechnet) | I70: [Fz/h] | J70: [Fz/h] | K70: [%] | L70: [Fz/h] | M70: [Fz/h] | N70: [%]
I71: 0 | J71: =I71-I71*(K71/100) -> 0 | K71: 0 | L71: 0 | M71: =L71-L71*(N71/100) -> 0 | N71: 0

Sheet Ganglinien (hidden)
A1: Ganglinien gemäss SN 640 005a | D1: Benannte Bereiche, es dürfen nur die Faktoren geändert werden | J1: dito
A3: Jahresganglinie für Orts-/Pendlerverkehr (Seite 23) | G3: Werktagsganglinie für Regionalverkehr (Seite 24) | M3: Werktagsganglinie für Ortsverkehr (Seite 23) | R3: Jahresganglinie für Pendlerverkehr wie Ortsverkehr (Seite 23) | W3: Jahresganglinie für kleinräumigen Schwerverkehr (Seite 40)
C4: Faktor: | D4: in % | E4: Standard-Abw. | I4: Faktor: | K4: Standard-Abw. | O4: Faktor: | T4: Faktor: | Y4: Faktor:
A5: Januar | B5: 1 | C5: 0.89 | D5: =C5 -> 0.89 | E5: 0.06 | G5: Januar | H5: 1 | I5: 0.85 | J5: =I5 -> 0.85 | K5: 0.06 | M5: Januar | N5: 1 | O5: 0.89 | P5: =O5 -> 0.89 | R5: Januar | S5: 1 | T5: 0.89 | U5: =T5 -> 0.89 | W5: Januar | X5: 1 | Y5: 0.796 | Z5: =Y5 -> 0.796
A6: Februar | B6: 2 | C6: 0.88 | D6: 0.88 | E6: 0.05 | G6: Februar | H6: 2 | I6: 0.87 | J6: 0.87 | K6: 0.05 | M6: Februar | N6: 2 | O6: 0.88 | P6: 0.88 | R6: Februar | S6: 2 | T6: 0.88 | U6: 0.88 | W6: Februar | X6: 2 | Y6: 0.842 | Z6: 0.842
A7: März | B7: 3 | C7: 1.02 | D7: 1.02 | E7: 0.03 | G7: März | H7: 3 | I7: 1.03 | J7: 1.03 | K7: 0.03 | M7: März | N7: 3 | O7: 1.02 | P7: 1.02 | R7: März | S7: 3 | T7: 1.02 | U7: 1.02 | W7: März | X7: 3 | Y7: 0.936 | Z7: 0.936
A8: April | B8: 4 | C8: 1.01 | D8: 1.01 | E8: 0.04 | G8: April | H8: 4 | I8: 0.96 | J8: 0.96 | K8: 0.04 | M8: April | N8: 4 | O8: 1.01 | P8: 1.01 | R8: April | S8: 4 | T8: 1.01 | U8: 1.01 | W8: April | X8: 4 | Y8: 1.074 | Z8: 1.074
A9: Mai | B9: 5 | C9: 1.05 | D9: 1.05 | E9: 0.05 | G9: Mai | H9: 5 | I9: 1.07 | J9: 1.07 | K9: 0.05 | M9: Mai | N9: 5 | O9: 1.05 | P9: 1.05 | R9: Mai | S9: 5 | T9: 1.05 | U9: 1.05 | W9: Mai | X9: 5 | Y9: 1.019 | Z9: 1.019
A10: Juni | B10: 6 | C10: 1.02 | D10: 1.02 | E10: 0.03 | G10: Juni | H10: 6 | I10: 1 | J10: 1 | K10: 0.03 | M10: Juni | N10: 6 | O10: 1.02 | P10: 1.02 | R10: Juni | S10: 6 | T10: 1.02 | U10: 1.02 | W10: Juni | X10: 6 | Y10: 1.084 | Z10: 1.084
A11: Juli | B11: 7 | C11: 1.04 | D11: 1.04 | E11: 0.09 | G11: Juli | H11: 7 | I11: 1.12 | J11: 1.12 | K11: 0.09 | M11: Juli | N11: 7 | O11: 1.04 | P11: 1.04 | R11: Juli | S11: 7 | T11: 1.04 | U11: 1.04 | W11: Juli | X11: 7 | Y11: 1.122 | Z11: 1.122
A12: August | B12: 8 | C12: 1.07 | D12: 1.07 | E12: 0.1 | G12: August | H12: 8 | I12: 1.22 | J12: 1.22 | K12: 0.1 | M12: August | N12: 8 | O12: 1.07 | P12: 1.07 | R12: August | S12: 8 | T12: 1.07 | U12: 1.07 | W12: August | X12: 8 | Y12: 1.017 | Z12: 1.017
A13: September | B13: 9 | C13: 1.05 | D13: 1.05 | E13: 0.04 | G13: September | H13: 9 | I13: 1.08 | J13: 1.08 | K13: 0.04 | M13: September | N13: 9 | O13: 1.05 | P13: 1.05 | R13: September | S13: 9 | T13: 1.05 | U13: 1.05 | W13: September | X13: 9 | Y13: 1.152 | Z13: 1.152
A14: Oktober | B14: 10 | C14: 1.06 | D14: 1.06 | E14: 0.03 | G14: Oktober | H14: 10 | I14: 1.04 | J14: 1.04 | K14: 0.03 | M14: Oktober | N14: 10 | O14: 1.06 | P14: 1.06 | R14: Oktober | S14: 10 | T14: 1.06 | U14: 1.06 | W14: Oktober | X14: 10 | Y14: 1.149 | Z14: 1.149
A15: November | B15: 11 | C15: 0.97 | D15: 0.97 | E15: 0.07 | G15: November | H15: 11 | I15: 0.88 | J15: 0.88 | K15: 0.07 | M15: November | N15: 11 | O15: 0.97 | P15: 0.97 | R15: November | S15: 11 | T15: 0.97 | U15: 0.97 | W15: November | X15: 11 | Y15: 0.96 | Z15: 0.96
A16: Dezember | B16: 12 | C16: 0.95 | D16: 0.95 | E16: 0.05 | G16: Dezember | H16: 12 | I16: 0.88 | J16: 0.88 | K16: 0.05 | M16: Dezember | N16: 12 | O16: 0.95 | P16: 0.95 | R16: Dezember | S16: 12 | T16: 0.95 | U16: 0.95 | W16: Dezember | X16: 12 | Y16: 0.848 | Z16: 0.848
A19: Werktagsganglinie für Orts-/Pendlerverkehr (Seite 9) | G19: Werktagsganglinie für Regionalverkehr (Seite 11) | M19: Werktagsganglinie für Ortsverkehr (Seite 10) | R19: Werktagsganglinie für Pendlerverkehr (Seite 9) | W19: Werktagsganglinie für kleinräumigen Schwerverkehr (Seite 33)
A20: Mittel aus Orts- und Pendlerverkehr | C20: Faktor: | D20: in % | E20: Standard-Abw. | I20: Faktor: | K20: Standard-Abw. | O20: Faktor: | T20: Faktor: | Y20: Faktor:
A21: 1 | B21: 00:00-01:00 | C21: =(O21+T21)/2 -> 0.007 | D21: =C21 -> 0.007 | E21: 0.001 | G21: 1 | H21: 00:00-01:00 | I21: 0.006 | J21: =I21 -> 0.006 | K21: 0.001 | M21: 1 | N21: 00:00-01:00 | O21: 0.007 | P21: =O21 -> 0.007 | R21: 1 | S21: 00:00-01:00 | T21: 0.007 | U21: =T21 -> 0.007 | W21: 1 | X21: 00:00-01:00 | Y21: 0.002 | Z21: =Y21 -> 0.002
A22: 2 | B22: 01:00-02:00 | C22: =(O22+T22)/2 -> 0.003 | D22: 0.003 | E22: 0.001 | G22: 2 | H22: 01:00-02:00 | I22: 0.003 | J22: =I22 -> 0.003 | K22: 0.001 | M22: 2 | N22: 01:00-02:00 | O22: 0.003 | P22: 0.003 | R22: 2 | S22: 01:00-02:00 | T22: 0.003 | U22: 0.003 | W22: 2 | X22: 01:00-02:00 | Y22: 0.001 | Z22: 0.001
A23: 3 | B23: 02:00-03:00 | C23: 0.002 | D23: 0.002 | E23: 0.001 | G23: 3 | H23: 02:00-03:00 | I23: 0.002 | J23: 0.002 | K23: 0.001 | M23: 3 | N23: 02:00-03:00 | O23: 0.002 | P23: 0.002 | R23: 3 | S23: 02:00-03:00 | T23: 0.002 | U23: 0.002 | W23: 3 | X23: 02:00-03:00 | Y23: 0.002 | Z23: 0.002
A24: 4 | B24: 03:00-04:00 | C24: 0.002 | D24: 0.002 | E24: 0.001 | G24: 4 | H24: 03:00-04:00 | I24: 0.002 | J24: 0.002 | K24: 0.001 | M24: 4 | N24: 03:00-04:00 | O24: 0.002 | P24: 0.002 | R24: 4 | S24: 03:00-04:00 | T24: 0.002 | U24: 0.002 | W24: 4 | X24: 03:00-04:00 | Y24: 0.002 | Z24: 0.002
A25: 5 | B25: 04:00-05:00 | C25: 0.004 | D25: 0.004 | E25: 0.001 | G25: 5 | H25: 04:00-05:00 | I25: 0.003 | J25: 0.003 | K25: 0.001 | M25: 5 | N25: 04:00-05:00 | O25: 0.004 | P25: 0.004 | R25: 5 | S25: 04:00-05:00 | T25: 0.004 | U25: 0.004 | W25: 5 | X25: 04:00-05:00 | Y25: 0.005 | Z25: 0.005
A26: 6 | B26: 05:00-06:00 | C26: 0.0135 | D26: 0.0135 | E26: 0.004 | G26: 6 | H26: 05:00-06:00 | I26: 0.012 | J26: 0.012 | K26: 0.004 | M26: 6 | N26: 05:00-06:00 | O26: 0.011 | P26: 0.011 | R26: 6 | S26: 05:00-06:00 | T26: 0.016 | U26: 0.016 | W26: 6 | X26: 05:00-06:00 | Y26: 0.03 | Z26: 0.03
A27: 7 | B27: 06:00-07:00 | C27: 0.0545 | D27: 0.0545 | E27: 0.014 | G27: 7 | H27: 06:00-07:00 | I27: 0.042 | J27: 0.042 | K27: 0.007 | M27: 7 | N27: 06:00-07:00 | O27: 0.048 | P27: 0.048 | R27: 7 | S27: 06:00-07:00 | T27: 0.061 | U27: 0.061 | W27: 7 | X27: 06:00-07:00 | Y27: 0.055 | Z27: 0.055
A28: 8 | B28: 07:00-08:00 | C28: 0.0775 | D28: 0.0775 | E28: 0.009 | G28: 8 | H28: 07:00-08:00 | I28: 0.064 | J28: 0.064 | K28: 0.008 | M28: 8 | N28: 07:00-08:00 | O28: 0.072 | P28: 0.072 | R28: 8 | S28: 07:00-08:00 | T28: 0.083 | U28: 0.083 | W28: 8 | X28: 07:00-08:00 | Y28: 0.077 | Z28: 0.077
A29: 9 | B29: 08:00-09:00 | C29: 0.057 | D29: 0.057 | E29: 0.008 | G29: 9 | H29: 08:00-09:00 | I29: 0.052 | J29: 0.052 | K29: 0.004 | M29: 9 | N29: 08:00-09:00 | O29: 0.054 | P29: 0.054 | R29: 9 | S29: 08:00-09:00 | T29: 0.06 | U29: 0.06 | W29: 9 | X29: 08:00-09:00 | Y29: 0.084 | Z29: 0.084
A30: 10 | B30: 09:00-10:00 | C30: 0.049 | D30: 0.049 | E30: 0.004 | G30: 10 | H30: 09:00-10:00 | I30: 0.051 | J30: 0.051 | K30: 0.003 | M30: 10 | N30: 09:00-10:00 | O30: 0.049 | P30: 0.049 | R30: 10 | S30: 09:00-10:00 | T30: 0.049 | U30: 0.049 | W30: 10 | X30: 09:00-10:00 | Y30: 0.084 | Z30: 0.084
A31: 11 | B31: 10:00-11:00 | C31: 0.051 | D31: 0.051 | E31: 0.004 | G31: 11 | H31: 10:00-11:00 | I31: 0.056 | J31: 0.056 | K31: 0.004 | M31: 11 | N31: 10:00-11:00 | O31: 0.052 | P31: 0.052 | R31: 11 | S31: 10:00-11:00 | T31: 0.05 | U31: 0.05 | W31: 11 | X31: 10:00-11:00 | Y31: 0.091 | Z31: 0.091
A32: 12 | B32: 11:00-12:00 | C32: 0.055 | D32: 0.055 | E32: 0.004 | G32: 12 | H32: 11:00-12:00 | I32: 0.058 | J32: 0.058 | K32: 0.003 | M32: 12 | N32: 11:00-12:00 | O32: 0.059 | P32: 0.059 | R32: 12 | S32: 11:00-12:00 | T32: 0.051 | U32: 0.051 | W32: 12 | X32: 11:00-12:00 | Y32: 0.084 | Z32: 0.084
A33: 13 | B33: 12:00-13:00 | C33: 0.0515 | D33: 0.0515 | E33: 0.004 | G33: 13 | H33: 12:00-13:00 | I33: 0.053 | J33: 0.053 | K33: 0.004 | M33: 13 | N33: 12:00-13:00 | O33: 0.055 | P33: 0.055 | R33: 13 | S33: 12:00-13:00 | T33: 0.048 | U33: 0.048 | W33: 13 | X33: 12:00-13:00 | Y33: 0.054 | Z33: 0.054
A34: 14 | B34: 13:00-14:00 | C34: 0.062 | D34: 0.062 | E34: 0.006 | G34: 14 | H34: 13:00-14:00 | I34: 0.066 | J34: 0.066 | K34: 0.003 | M34: 14 | N34: 13:00-14:00 | O34: 0.067 | P34: 0.067 | R34: 14 | S34: 13:00-14:00 | T34: 0.057 | U34: 0.057 | W34: 14 | X34: 13:00-14:00 | Y34: 0.078 | Z34: 0.078
A35: 15 | B35: 14:00-15:00 | C35: 0.059 | D35: 0.059 | E35: 0.005 | G35: 15 | H35: 14:00-15:00 | I35: 0.067 | J35: 0.067 | K35: 0.004 | M35: 15 | N35: 14:00-15:00 | O35: 0.061 | P35: 0.061 | R35: 15 | S35: 14:00-15:00 | T35: 0.057 | U35: 0.057 | W35: 15 | X35: 14:00-15:00 | Y35: 0.085 | Z35: 0.085
A36: 16 | B36: 15:00-16:00 | C36: 0.0615 | D36: 0.0615 | E36: 0.004 | G36: 16 | H36: 15:00-16:00 | I36: 0.07 | J36: 0.07 | K36: 0.005 | M36: 16 | N36: 15:00-16:00 | O36: 0.063 | P36: 0.063 | R36: 16 | S36: 15:00-16:00 | T36: 0.06 | U36: 0.06 | W36: 16 | X36: 15:00-16:00 | Y36: 0.08 | Z36: 0.08
A37: 17 | B37: 16:00-17:00 | C37: 0.079 | D37: 0.079 | E37: 0.006 | G37: 17 | H37: 16:00-17:00 | I37: 0.083 | J37: 0.083 | K37: 0.005 | M37: 17 | N37: 16:00-17:00 | O37: 0.079 | P37: 0.079 | R37: 17 | S37: 16:00-17:00 | T37: 0.079 | U37: 0.079 | W37: 17 | X37: 16:00-17:00 | Y37: 0.068 | Z37: 0.068
A38: 18 | B38: 17:00-18:00 | C38: 0.093 | D38: 0.093 | E38: 0.009 | G38: 18 | H38: 17:00-18:00 | I38: 0.094 | J38: 0.094 | K38: 0.004 | M38: 18 | N38: 17:00-18:00 | O38: 0.092 | P38: 0.092 | R38: 18 | S38: 17:00-18:00 | T38: 0.094 | U38: 0.094 | W38: 18 | X38: 17:00-18:00 | Y38: 0.047 | Z38: 0.047
A39: 19 | B39: 18:00-19:00 | C39: 0.073 | D39: 0.073 | E39: 0.005 | G39: 19 | H39: 18:00-19:00 | I39: 0.074 | J39: 0.074 | K39: 0.004 | M39: 19 | N39: 18:00-19:00 | O39: 0.073 | P39: 0.073 | R39: 19 | S39: 18:00-19:00 | T39: 0.073 | U39: 0.073 | W39: 19 | X39: 18:00-19:00 | Y39: 0.029 | Z39: 0.029
A40: 20 | B40: 19:00-20:00 | C40: 0.05 | D40: 0.05 | E40: 0.004 | G40: 20 | H40: 19:00-20:00 | I40: 0.051 | J40: 0.051 | K40: 0.004 | M40: 20 | N40: 19:00-20:00 | O40: 0.051 | P40: 0.051 | R40: 20 | S40: 19:00-20:00 | T40: 0.049 | U40: 0.049 | W40: 20 | X40: 19:00-20:00 | Y40: 0.018 | Z40: 0.018
A41: 21 | B41: 20:00-21:00 | C41: 0.032 | D41: 0.032 | E41: 0.003 | G41: 21 | H41: 20:00-21:00 | I41: 0.032 | J41: 0.032 | K41: 0.003 | M41: 21 | N41: 20:00-21:00 | O41: 0.033 | P41: 0.033 | R41: 21 | S41: 20:00-21:00 | T41: 0.031 | U41: 0.031 | W41: 21 | X41: 20:00-21:00 | Y41: 0.012 | Z41: 0.012
A42: 22 | B42: 21:00-22:00 | C42: 0.0245 | D42: 0.0245 | E42: 0.003 | G42: 22 | H42: 21:00-22:00 | I42: 0.024 | J42: 0.024 | K42: 0.003 | M42: 22 | N42: 21:00-22:00 | O42: 0.025 | P42: 0.025 | R42: 22 | S42: 21:00-22:00 | T42: 0.024 | U42: 0.024 | W42: 22 | X42: 21:00-22:00 | Y42: 0.007 | Z42: 0.007
A43: 23 | B43: 22:00-23:00 | C43: 0.022 | D43: 0.022 | E43: 0.003 | G43: 23 | H43: 22:00-23:00 | I43: 0.021 | J43: 0.021 | K43: 0.003 | M43: 23 | N43: 22:00-23:00 | O43: 0.022 | P43: 0.022 | R43: 23 | S43: 22:00-23:00 | T43: 0.022 | U43: 0.022 | W43: 23 | X43: 22:00-23:00 | Y43: 0.004 | Z43: 0.004
A44: 24 | B44: 23:00-24:00 | C44: =(O44+T44)/2 -> 0.016 | D44: 0.016 | E44: 0.002 | G44: 24 | H44: 23:00-24:00 | I44: 0.014 | J44: 0.014 | K44: 0.002 | M44: 24 | N44: 23:00-24:00 | O44: 0.016 | P44: 0.016 | R44: 24 | S44: 23:00-24:00 | T44: 0.016 | U44: =T44 -> 0.016 | W44: 24 | X44: 23:00-24:00 | Y44: 0.003 | Z44: 0.003
A45: Anteil Tagesperiode | C45: =SUM(C27:C42) -> 0.9295 | G45: Anteil Tagesperiode | I45: =SUM(I27:I42) -> 0.937 | M45: Anteil Tagesperiode | O45: =SUM(O27:O42) -> 0.933 | R45: Anteil Tagesperiode | T45: =SUM(T27:T42) -> 0.926 | W45: Anteil Tagesperiode | Y45: =SUM(Y27:Y42) -> 0.953
A48: Wochenganglinie für Orts-/Pendlerverkehr (Seite 19) | G48: Wochenganglinie für Regionalverkehr (Seite 20) | M48: Wochenganglinie für Ortsverkehr (Seite 19) | R48: Wochenganglinie für Pendlerverkehr wie Ortsverkehr (Seite 9) | W48: Wochenganglinie für kleinräumigen Schwerverkehr (Seite 38)
C49: Faktor: | D49: in % | E49: Standard-Abw. | I49: Faktor: | K49: Standard-Abw. | O49: Faktor: | T49: Faktor: | Y49: Faktor:
A50: 1 | B50: Montag | C50: 0.95 | D50: =C50 -> 0.95 | E50: 0.02 | G50: 1 | H50: Montag | I50: 0.94 | J50: =I50 -> 0.94 | K50: 0.02 | M50: 1 | N50: Montag | O50: 0.95 | P50: =O50 -> 0.95 | R50: 1 | S50: Montag | T50: 0.95 | U50: =T50 -> 0.95 | W50: 1 | X50: Montag | Y50: 0.98 | Z50: =Y50 -> 0.98
A51: 2 | B51: Dienstag | C51: 0.97 | D51: =C51 -> 0.97 | E51: 0.02 | G51: 2 | H51: Dienstag | I51: 0.95 | J51: =I51 -> 0.95 | K51: 0.02 | M51: 2 | N51: Dienstag | O51: 0.97 | P51: =O51 -> 0.97 | R51: 2 | S51: Dienstag | T51: 0.97 | U51: =T51 -> 0.97 | W51: 2 | X51: Dienstag | Y51: 1.01 | Z51: =Y51 -> 1.01
A52: 3 | B52: Mittwoch | C52: 1 | D52: 1 | E52: 0.02 | G52: 3 | H52: Mittwoch | I52: 1 | J52: 1 | K52: 0.02 | M52: 3 | N52: Mittwoch | O52: 1 | P52: 1 | R52: 3 | S52: Mittwoch | T52: 1 | U52: 1 | W52: 3 | X52: Mittwoch | Y52: 1.01 | Z52: 1.01
A53: 4 | B53: Donnerstag | C53: 1 | D53: 1 | E53: 0.01 | G53: 4 | H53: Donnerstag | I53: 1 | J53: 1 | K53: 0.01 | M53: 4 | N53: Donnerstag | O53: 1 | P53: 1 | R53: 4 | S53: Donnerstag | T53: 1 | U53: 1 | W53: 4 | X53: Donnerstag | Y53: 1.03 | Z53: 1.03
A54: 5 | B54: Freitag | C54: 1.08 | D54: 1.08 | E54: 0.04 | G54: 5 | H54: Freitag | I54: 1.11 | J54: 1.11 | K54: 0.04 | M54: 5 | N54: Freitag | O54: 1.08 | P54: 1.08 | R54: 5 | S54: Freitag | T54: 1.08 | U54: 1.08 | W54: 5 | X54: Freitag | Y54: 0.97 | Z54: 0.97
A55: 6 | B55: Samstag | C55: 0.93 | D55: 0.93 | E55: 0.09 | G55: 6 | H55: Samstag | I55: 1.1 | J55: 1.1 | K55: 0.09 | M55: 6 | N55: Samstag | O55: 0.93 | P55: 0.93 | R55: 6 | S55: Samstag | T55: 0.93 | U55: 0.93 | W55: 6 | X55: Samstag | Y55: 0.29 | Z55: 0.29
A56: 7 | B56: Sonntag | C56: 0.8 | D56: 0.8 | E56: 0.13 | G56: 7 | H56: Sonntag | I56: 1.04 | J56: 1.04 | K56: 0.13 | M56: 7 | N56: Sonntag | O56: 0.8 | P56: 0.8 | R56: 7 | S56: Sonntag | T56: 0.8 | U56: 0.8 | W56: 7 | X56: Sonntag | Y56: 0.14 | Z56: 0.14
T58: =6.73/7 -> 0.9614285714 | U58: =T58*52 -> 49.99428571

Sheet Steuerung (hidden)
E2: Aufteilung Lieferwagen auf PW und Schwerverkehr
B3: VZ_Kat | C3: Orts-/Pendlerverkehr | E3: LW_Anteil | F3: 0.8 | G3: 80% zu PW
C4: Regionalverkehr | F4: 0.2 | G4: 20% zu LKW
B6: VZ_Tag | C6: Montag
C7: Dienstag | E7: Standardwerte LSV Art. 33:
C8: Mittwoch
C9: Donnerstag | E9: LSV | F9: 0.1 | G9: 10% tags Anteil Schwerverkehr
C10: Freitag | F10: 0.05 | G10: 5% nachts Anteil Schwerverkehr
F11: 0.058 | G11: Anteil Tagesverkehr an DTV
F12: 0.009 | G12: Anteil Nachtverkehr an DTV
B13: VZ_Periode | C13: 00:00-01:00
C14: 01:00-02:00
C15: 02:00-03:00
C16: 03:00-04:00
C17: 04:00-05:00
C18: 05:00-06:00
C19: 06:00-07:00
C20: 07:00-08:00
C21: 08:00-09:00
C22: 09:00-10:00
C23: 10:00-11:00
C24: 11:00-12:00
C25: 12:00-13:00
C26: 13:00-14:00
C27: 14:00-15:00
C28: 15:00-16:00
C29: 16:00-17:00
C30: 17:00-18:00
C31: 18:00-19:00
C32: 19:00-20:00
C33: 20:00-21:00
C34: 21:00-22:00
C35: 22:00-23:00
C36: 23:00-24:00
B39: VZ_Art | C39: Handzählung
C40: Automatisch

Sheet Doku
A1: Legende
A3: X / Y | B3: Landeskoordinaten (Rechtswert / Hochwert) gemäss Bezugssystem der Landestopographie
A4: PW | B4: PW pro Stunde (inkl. Mofas sowie Lieferwagenanteil von 80%)
A5: LKW | B5: Last(kraft)wagen
A6: LW | B6: Schwerverkehr pro Stunde (LKW inkl. Motorräder und 20% Lieferwagenanteil)
A7: DTV | B7: Durchschnittlicher täglicher Verkehr (= Anzahl PW+LW in 24h)
A9: Nt | B9: Durchschnittliche Anzahl Fahrzeuge pro Stunde zwischen 06-22
A10: Nt1 | B10: Durchschnittliche Anzahl PW pro Stunde zwischen 06-22
A11: Nt2 | B11: Durchschnittliche Anzahl LW pro Stunde zwischen 06-22
A13: Nn | B13: Durchschnittliche Anzahl Fahrzeuge pro Stunde zwischen 22-06
A14: Nn1 | B14: Durchschnittliche Anzahl PW pro Stunde zwischen 22-06
A15: Nn2 | B15: Durchschnittliche Anzahl LW pro Stunde zwischen 22-06
A18: Hinweise
A20: Das Tool dient zur Berechnung des durchschnittlichen 24h-Verkehrs (DTV) auf Gemeindestrassen aufgrund einer einzelnen Verkehrszählung. Abhängig von der gewählten Verkehrsart werden die entsprechenden Jahres-, Wochentags- und Tagesganglinien für die Berechnung des DTV berücksichtigt (Quelle: VSS-Norm SN 640 005a). Es können zwei für Gemeinden typische Verkehrsarten eingestellt werden: - Orts-/Pendlerverkehr - Regionalverkehr Beim Ortsverkehr bestimmt der kleinräumige Pendler-, Einkaufs- und Nutzverkehr die Ganglinien. Beim Pendlerverkehr handelt es sich um Verkehr, der sich auf dem übergeordneten Strassennetz abspielt, wobei Pendler, welche grössere Distanzen zurücklegen, dominieren. Weil der Orts- und der Pendlerverkehr sehr ähnliche Ganglinien aufweisen, wurden sie zusammengefasst und die prozentualen Verkehrsanteile aus den Ganglinien gemittelt. Der Regionalverkehr umfasst den überörtlichen Verkehr, soweit es sich nicht um den Typ Freizeitverkehr handelt, und ist verglichen mit diesem kleinräumiger. Verglichen mit dem Typ Ortsverkehr haben Pendler- und Einkaufsverkehr eine geringere Bedeutung. Der Schwerverkehrsanteil wird ebenfalls aus den Ganglinien für "kleinräumigen Schwerverkehr" berechnet. Zusätzlich wird auch eine Angabe über die Genauigkeit des berechneten DTV in Form der Standardabweichung gemacht. Die Grundlagen dafür stammen ebenfalls aus der oben zitierten VSS-Norm, d.h. die Standardabweichung ist nur vom eingestellten Datum, der Zählzeit und der Verkehrsart abhängig.
A22: Vorgehen
A24: Mittels 'TAB' von Feld zu Feld springen und die erforderlichen Informationen einfüllen. Teilweise sind Auswahllisten hinterlegt. Es können nur die Felder mit blauer Schrift vom Benutzer manuell verändert werden. Die Symbole für die Bezeichnung des Mess-Standortes und des Strassenabschnittes, für welchen die Verkehrszählung gilt, können in den Situationsplan kopiert werden. Die Verkehrszahlen werden pro Fahrtrichtung und Fahrzeugkategorie in die Felder der Zähltabelle eingegeben. Die von diesen Daten abhängigen Grössen (DTV, etc.) werden jeweils sofort neu berechnet. Eine Neuberechnung erfolgt auch, wenn die Verkehrsart, das Datum oder die Messzeit geändert werden, mit dem Unterschied, dass nur der DTV und die Daten in der Resultat-Tabelle "Verkehr im Jahresdurchschnitt" aktualisiert werden. Solche nachträglichen Änderungen können jederzeit vorgenommen werden.
